bitfinex-derivatives/quotes_BTCF0:USTF0_20251111
["timestamp","ask_amount","ask_price","bid_price","bid_amount"]
[1762835054217,0.14161491,106240.0,106230.0,0.1423987]
[1762835055209,0.1503987,106230.0,106220.0,0.0001411]
[1762835055410,0.05623,106200.0,106190.0,0.05470446]
[1762835055716,0.15262333,106200.0,106190.0,0.05470446]
[1762835055914,0.15262333,106200.0,106190.0,0.04523]
[1762835056110,0.05623,106190.0,106180.0,0.1394386]
[1762835056304,0.15263213,106190.0,106180.0,0.1394386]
[1762835056508,0.15275377,106190.0,106180.0,0.04523]
[1762835057316,0.15375377,106190.0,106180.0,0.05023]
[1762835057717,0.15375377,106190.0,106180.0,0.02735]
[1762835058415,0.15375377,106190.0,106180.0,0.05023]
[1762835058814,0.15375377,106190.0,106180.0,0.144443]
[1762835059014,0.15375377,106190.0,106180.0,0.05023]
[1762835059215,0.15375377,106190.0,106180.0,0.04623]
[1762835059615,0.15375377,106190.0,106180.0,0.04923]
[1762835060125,0.15375377,106190.0,106180.0,0.1404431]
[1762835060614,0.05954967,106190.0,106180.0,0.1404431]
[1762835060823,0.04663967,106190.0,106180.0,0.29203017]
[1762835064120,0.04663967,106190.0,106180.0,0.19781707]
[1762835064121,0.14084387,106190.0,106180.0,0.19781707]
[1762835064321,0.04663967,106190.0,106180.0,0.29203017]
[1762835065608,0.14084387,106190.0,106180.0,0.19781707]
[1762835066015,0.14084387,106190.0,106180.0,0.04623]
[1762835066016,0.15413387,106190.0,106180.0,0.04623]
[1762835070728,0.15413387,106190.0,106180.0,0.1404431]
[1762835070926,0.15413387,106190.0,106180.0,0.23301788]
[1762835072529,0.15413387,106190.0,106180.0,0.13880478]
[1762835072729,0.24670865,106190.0,106180.0,0.001]
[1762835074222,0.24670865,106190.0,106180.0,0.0952131]
[1762835075520,0.1516531,106180.0,106170.0,0.10530031]
[1762835075827,0.15221281,106180.0,106170.0,0.1157871]
[1762835076032,0.05963803,106180.0,106170.0,0.23005188]
[1762835076734,0.05963803,106180.0,106170.0,0.23105188]
[1762835077232,0.05963803,106180.0,106170.0,0.23305188]
[1762835077430,0.06063803,106180.0,106170.0,0.23305188]
[1762835078232,0.06063803,106180.0,106170.0,0.24386376]
[1762835078834,0.15323047,106180.0,106170.0,0.24388142]
[1762835081434,0.04734803,106180.0,106170.0,0.25677142]
[1762835081635,0.001,106180.0,106170.0,0.34936386]
[1762835082138,0.04415,106190.0,106180.0,0.1468231]
[1762835082332,0.04415,106190.0,106180.0,0.04312]
[1762835082333,0.24643467,106190.0,106180.0,0.04312]
[1762835082526,0.05744,106180.0,106170.0,0.14966542]
[1762835082838,0.05963803,106180.0,106170.0,0.25677742]
[1762835083037,0.05967838,106180.0,106170.0,0.25677742]
[1762835083229,0.04638838,106180.0,106170.0,0.25677742]
[1762835083439,0.04638838,106180.0,106170.0,0.25577742]
[1762835083630,0.04638838,106180.0,106170.0,0.25377742]
[1762835084536,0.04738838,106180.0,106170.0,0.25677742]
[1762835085231,0.00323838,106180.0,106170.0,0.25777742]
[1762835086741,0.04738838,106180.0,106170.0,0.25777742]
[1762835087130,0.00323838,106180.0,106170.0,0.25777742]
[1762835087730,0.02581838,106180.0,106170.0,0.25777742]
[1762835088234,0.04738838,106180.0,106170.0,0.25777742]
[1762835089232,0.04515,106180.0,106170.0,0.25777742]
[1762835089440,0.01419335,106180.0,106170.0,0.25997545]
[1762835090043,0.13128645,106180.0,106170.0,0.16575345]
[1762835090342,0.12966579,106180.0,106170.0,0.25997545]
[1762835090637,0.03707335,106180.0,106170.0,0.25997545]
[1762835090838,0.03707335,106180.0,106170.0,0.16738301]
[1762835091026,0.13128645,106180.0,106170.0,0.16738301]
[1762835091430,0.13128645,106180.0,106170.0,0.07316101]
[1762835091831,0.03707335,106180.0,106170.0,0.16738301]
[1762835092841,0.13128635,106180.0,106170.0,0.16738301]
[1762835093542,0.14047635,106180.0,106170.0,0.06027101]
[1762835093732,0.14047635,106180.0,106170.0,0.04945913]
[1762835094542,0.03707335,106180.0,106170.0,0.24431122]
[1762835094846,0.13128635,106180.0,106170.0,0.15751103]
[1762835097246,0.03707335,106180.0,106170.0,0.15751103]
[1762835097441,0.13128635,106180.0,106170.0,0.15751103]
[1762835098044,0.03707335,106180.0,106170.0,0.15751103]
[1762835098247,0.13128635,106180.0,106170.0,0.15751103]
[1762835101049,0.13128635,106180.0,106170.0,0.06328913]
[1762835101243,0.21808654,106180.0,106170.0,0.04945913]
[1762835101947,0.13128635,106180.0,106170.0,0.14368113]
[1762835102141,0.13128635,106180.0,106170.0,0.15642113]
[1762835102847,0.03707335,106180.0,106170.0,0.15642113]
[1762835103946,0.13128645,106180.0,106170.0,0.15642113]
[1762835104340,0.13128645,106180.0,106170.0,0.06219913]
[1762835104741,0.13128645,106180.0,106170.0,0.15642113]
[1762835105044,0.03707335,106180.0,106170.0,0.15642113]
[1762835106354,0.13128645,106180.0,106170.0,0.15642113]
[1762835106743,0.13128645,106180.0,106170.0,0.06219913]
[1762835107253,0.13128645,106180.0,106170.0,0.15642103]
[1762835109958,0.03707335,106180.0,106170.0,0.15642103]
[1762835110153,0.13128635,106180.0,106170.0,0.06219913]
[1762835110455,0.13128635,106180.0,106170.0,0.15642103]
[1762835112447,0.13128635,106180.0,106170.0,0.06219913]
[1762835112661,0.57668654,106180.0,106170.0,0.0041411]
[1762835112955,0.67516409,106180.0,106170.0,0.0041411]
[1762835113748,0.67616409,106180.0,106170.0,0.0031411]
[1762835113956,0.0942308,106160.0,106140.0,0.19155806]
[1762835114160,0.24354967,106160.0,106150.0,0.02298]
[1762835114351,0.24428234,106160.0,106150.0,0.02298]
[1762835114551,0.1382196,106150.0,106140.0,0.05979803]
[1762835114748,0.13895227,106150.0,106140.0,0.15404653]
[1762835115054,0.13895227,106150.0,106140.0,0.15704653]
[1762835115559,0.23159114,106150.0,106140.0,0.2496854]
[1762835116063,0.23159114,106150.0,106140.0,0.2506854]
[1762835116259,0.23159114,106150.0,106140.0,0.15804653]
[1762835116463,0.23159114,106150.0,106140.0,0.2506854]
[1762835116652,0.23159114,106150.0,106140.0,0.2476854]
[1762835116856,0.23259114,106150.0,106140.0,0.2506854]
[1762835117460,0.24178114,106150.0,106140.0,0.05090803]
[1762835119368,0.24178114,106150.0,106140.0,0.02917803]
[1762835119763,0.24178114,106150.0,106140.0,0.05173803]
[1762835120261,0.24178114,106150.0,106140.0,0.14598653]
[1762835120864,0.14754154,106150.0,106140.0,0.14598653]
[1762835121168,0.14754154,106150.0,106140.0,0.15991653]
[1762835121866,0.13835154,106150.0,106140.0,0.15991653]
[1762835123168,0.04571267,106150.0,106140.0,0.34519427]
[1762835123469,0.13759154,106150.0,106140.0,0.2525554]
[1762835127567,0.23183114,106150.0,106140.0,0.1583069]
[1762835127773,0.23183114,106150.0,106140.0,0.06566803]
[1762835127968,0.24102114,106150.0,106140.0,0.05173803]
[1762835128872,0.24102114,106150.0,106140.0,0.14598653]
[1762835129576,0.24102114,106150.0,106140.0,0.05173803]
[1762835130761,0.24102114,106150.0,106140.0,0.004]
[1762835130762,0.33366001,106150.0,106140.0,0.004]
[1762835135981,0.14838227,106150.0,106140.0,0.004]
[1762835136177,0.33366001,106150.0,106140.0,0.02727]
[1762835136379,0.33366001,106150.0,106140.0,0.05202803]
[1762835136580,0.14838227,106150.0,106140.0,0.05202803]
[1762835136881,0.14838227,106150.0,106140.0,0.02946803]
[1762835137074,0.33366001,106150.0,106140.0,0.00619803]
[1762835138273,0.59055114,106150.0,106140.0,0.06595803]
[1762835138478,0.59055114,106150.0,106140.0,0.16020653]
[1762835138879,0.59057796,106150.0,106140.0,0.16020653]
[1762835139571,0.59057796,106150.0,106140.0,0.004]
[1762835142180,0.61321886,106150.0,106140.0,0.004]
[1762835146072,0.1475885,106140.0,106130.0,0.00519991]
[1762835146271,0.33365255,106140.0,106130.0,0.00519991]
[1762835147374,0.33465255,106140.0,106130.0,0.00819991]
[1762835147576,0.1374863,106120.0,106110.0,0.152842]
[1762835147781,0.23088466,106120.0,106110.0,0.15504003]
[1762835148585,0.23098382,106120.0,106110.0,0.15504003]
[1762835148882,0.23198382,106120.0,106110.0,0.16004003]
[1762835149185,0.13931813,106120.0,106110.0,0.16304003]
[1762835149384,0.23198382,106120.0,106110.0,0.16304003]
[1762835150381,0.23198382,106120.0,106110.0,0.15804003]
[1762835150584,0.23198382,106120.0,106110.0,0.15504003]
[1762835152274,0.04505183,106120.0,106110.0,0.15504003]
[1762835153285,0.13931813,106120.0,106110.0,0.15504003]
[1762835153588,0.04505183,106120.0,106110.0,0.15504003]
[1762835155486,0.13931813,106120.0,106110.0,0.15504003]
[1762835155782,0.13931813,106120.0,106110.0,0.06076803]
[1762835155783,0.23198382,106120.0,106110.0,0.06076803]
[1762835155988,0.23198382,106120.0,106110.0,0.15504313]
[1762835158497,0.23198382,106120.0,106110.0,0.06076803]
[1762835160384,0.24117382,106120.0,106110.0,0.06076803]
[1762835161385,0.23198382,106120.0,106110.0,0.04583]
[1762835161591,0.23198382,106120.0,106100.0,0.0440311]
[1762835161592,0.1515451,106110.0,106100.0,0.0440311]
[1762835161782,0.59096346,106110.0,106100.0,0.15343313]
[1762835161987,0.59096346,106110.0,106100.0,0.05914913]
[1762835162694,0.68362915,106110.0,106100.0,0.05914913]
[1762835162991,0.68562915,106110.0,106100.0,0.0440311]
[1762835163189,0.1388629,106090.0,106080.0,0.05782]
[1762835163392,0.23236042,106090.0,106080.0,0.06001803]
[1762835163892,0.23236042,106090.0,106080.0,0.15431983]
[1762835164597,0.23236042,106090.0,106080.0,0.06001803]
[1762835165490,0.23236042,106090.0,106080.0,0.15431983]
[1762835166302,0.59208042,106090.0,106080.0,0.06001803]
[1762835167498,0.59208042,106090.0,106080.0,0.15431983]
[1762835167695,0.59208042,106090.0,106080.0,0.06001803]
[1762835170199,0.59208042,106090.0,106070.0,0.107227]
[1762835170200,0.1388718,106080.0,106070.0,0.05681]
[1762835170391,0.32493585,106080.0,106070.0,0.05900803]
[1762835171101,0.1388807,106070.0,106060.0,0.05691943]
[1762835171301,0.59113822,106070.0,106060.0,0.05911746]
[1762835173200,0.59213822,106070.0,106060.0,0.05911746]
[1762835173402,0.59213822,106070.0,106060.0,0.15343706]
[1762835175211,0.13906752,106070.0,106060.0,0.15343706]
[1762835175506,0.00183183,106070.0,106060.0,0.24610275]
[1762835176989,0.00109916,106070.0,106060.0,0.24610275]
[1762835177190,0.00109916,106070.0,106060.0,0.48182275]
[1762835177390,0.0001411,106080.0,106070.0,0.1511207]
[1762835177596,0.138854,106100.0,106090.0,0.01292]
[1762835177798,0.13796836,106100.0,106090.0,0.15330093]
[1762835178005,0.00073267,106100.0,106090.0,0.15330093]
[1762835178411,0.00073267,106100.0,106090.0,0.24596662]
[1762835178793,0.0228511,106110.0,106100.0,0.151094]
[1762835178996,0.02358377,106110.0,106100.0,0.15329203]
[1762835179600,0.13971887,106110.0,106100.0,0.15329203]
[1762835179810,0.00087377,106110.0,106100.0,0.24595772]
[1762835180204,0.00087377,106110.0,106100.0,0.15167372]
[1762835180409,0.04649377,106110.0,106100.0,0.15429203]
[1762835180706,0.00187377,106110.0,106100.0,0.15429203]
[1762835181012,0.0011411,106110.0,106100.0,0.24695772]
[1762835181312,0.23153429,106140.0,106130.0,0.05782]
[1762835181502,0.23226696,106140.0,106130.0,0.06001803]
[1762835182405,0.23226696,106140.0,106130.0,0.06101803]
[1762835182595,0.23326696,106140.0,106130.0,0.06301803]
[1762835182796,0.14060127,106140.0,106130.0,0.15727543]
[1762835183010,0.23326696,106140.0,106130.0,0.15727543]
[1762835183207,0.04635267,106140.0,106130.0,0.24994112]
[1762835183713,0.04635267,106140.0,106130.0,0.06301803]
[1762835183714,0.14060117,106140.0,106130.0,0.06301803]
[1762835184010,0.23326686,106140.0,106130.0,0.06301803]
[1762835185108,0.23326686,106140.0,106130.0,0.15727543]
[1762835185309,0.23326686,106140.0,106130.0,0.06301803]
[1762835187110,0.33605255,106140.0,106130.0,0.04984803]
[1762835187610,0.24338686,106140.0,106130.0,0.04984803]
[1762835190018,0.24338686,106140.0,106130.0,0.00519803]
[1762835191421,0.24338686,106140.0,106130.0,0.02677803]
[1762835191624,0.14060117,106140.0,106130.0,0.15727543]
[1762835191813,0.23326686,106140.0,106130.0,0.15727543]
[1762835192920,0.33605255,106140.0,106130.0,0.04984803]
[1762835193625,0.69477255,106140.0,106130.0,0.00519803]
[1762835193827,0.69477255,106140.0,106130.0,0.003]
[1762835195016,0.1457974,106130.0,106120.0,0.0001411]
[1762835195322,0.1388952,106110.0,106100.0,0.05757]
[1762835195524,0.23229356,106110.0,106100.0,0.05976803]
[1762835195823,0.23229356,106110.0,106100.0,0.15405203]
[1762835196225,0.23229356,106110.0,106100.0,0.05976803]
[1762835197222,0.23229356,106110.0,106100.0,0.15405203]
[1762835197423,0.13962787,106110.0,106100.0,0.15405203]
[1762835197622,0.04735267,106110.0,106100.0,0.15405203]
[1762835197823,0.14262787,106110.0,106100.0,0.15405203]
[1762835198023,0.02323267,106110.0,106100.0,0.15405203]
[1762835198225,0.23329356,106110.0,106100.0,0.05976803]
[1762835198825,0.14062787,106110.0,106100.0,0.05976803]
[1762835199021,0.23335472,106110.0,106100.0,0.15405213]
[1762835200323,0.23335472,106110.0,106100.0,0.05976803]
[1762835201326,0.23335472,106110.0,106100.0,0.15405203]
[1762835201829,0.23335472,106110.0,106100.0,0.15405213]
[1762835202025,0.23335472,106110.0,106100.0,0.05976803]
[1762835203126,0.24027472,106110.0,106100.0,0.05976803]
[1762835203330,0.33300157,106110.0,106100.0,0.04684803]
[1762835203533,0.33300157,106110.0,106100.0,0.00219803]
[1762835203723,0.69192157,106110.0,106100.0,0.00219803]
[1762835204222,0.69192157,106110.0,106090.0,0.0133111]
[1762835204223,0.138904,106100.0,106090.0,0.0579611]
[1762835204424,0.32509037,106100.0,106090.0,0.06015913]
[1762835205231,0.33521037,106100.0,106090.0,0.04698913]
[1762835206231,0.1389218,106080.0,106070.0,0.05782]
[1762835206532,0.33429817,106080.0,106070.0,0.06001803]
[1762835207231,0.32510817,106080.0,106070.0,0.06001803]
[1762835207528,0.32910817,106080.0,106070.0,0.06001803]
[1762835207732,0.33829817,106080.0,106070.0,0.04684803]
[1762835208031,0.33829817,106080.0,106070.0,0.02377803]
[1762835208224,0.33829817,106080.0,106070.0,0.04684803]
[1762835208734,0.00473267,106080.0,106070.0,0.24705558]
[1762835210236,0.02623267,106080.0,106070.0,0.24705558]
[1762835211024,0.00473267,106080.0,106070.0,0.15432873]
[1762835211228,0.00473267,106080.0,106070.0,0.24705558]
[1762835213737,0.02618267,106080.0,106070.0,0.24705558]
[1762835213934,0.14374447,106080.0,106070.0,0.24705558]
[1762835214133,0.04944267,106080.0,106070.0,0.24705558]
[1762835214334,0.14374447,106080.0,106070.0,0.24705558]
[1762835214838,0.04944267,106080.0,106070.0,0.24705558]
[1762835215039,0.14374447,106080.0,106070.0,0.24705558]
[1762835216139,0.14374447,106080.0,106070.0,0.15432873]
[1762835216339,0.04944267,106080.0,106070.0,0.24705558]
[1762835218443,0.02618267,106080.0,106070.0,0.24705558]
[1762835218629,0.04765267,106080.0,106070.0,0.24705558]
[1762835218836,0.02605267,106080.0,106070.0,0.24705558]
[1762835219035,0.00473267,106080.0,106070.0,0.24705558]
[1762835219736,0.02605267,106080.0,106070.0,0.24705558]
[1762835220143,0.00473267,106080.0,106070.0,0.24705558]
[1762835221144,0.004,106080.0,106070.0,0.33978243]
[1762835221344,0.22991755,106120.0,106110.0,0.05729]
[1762835221538,0.25349658,106120.0,106110.0,0.05948803]
[1762835221845,0.23065022,106120.0,106110.0,0.05948803]
[1762835222344,0.32337707,106120.0,106110.0,0.05948803]
[1762835222648,0.32537707,106120.0,106110.0,0.05948803]
[1762835223146,0.33229707,106120.0,106110.0,0.04666803]
[1762835223333,0.33229707,106120.0,106100.0,0.0129611]
[1762835223541,0.24197205,106110.0,106100.0,0.04680913]
[1762835223732,0.24270472,106110.0,106100.0,0.14109313]
[1762835224042,0.23065472,106110.0,106100.0,0.15391313]
[1762835225344,0.00073267,106110.0,106100.0,0.24663998]
[1762835225546,0.00073267,106110.0,106100.0,0.33936683]
[1762835225843,0.02305267,106110.0,106100.0,0.24863998]
[1762835226239,0.00173267,106110.0,106100.0,0.34136683]
[1762835229951,0.09600787,106110.0,106100.0,0.24708283]
[1762835230159,0.23165472,106110.0,106100.0,0.24863998]
[1762835230342,0.13892787,106110.0,106100.0,0.34136683]
[1762835231552,0.23165472,106110.0,106100.0,0.15435598]
[1762835231754,0.23165472,106110.0,106100.0,0.06162913]
[1762835231954,0.23165472,106110.0,106100.0,0.15435598]
[1762835233559,0.23165472,106110.0,106100.0,0.24864008]
[1762835234354,0.23165472,106110.0,106100.0,0.15435598]
[1762835234556,0.23165472,106110.0,106100.0,0.24864008]
[1762835234747,0.23165472,106110.0,106100.0,0.15435598]
[1762835235149,0.23165472,106110.0,106100.0,0.24864008]
[1762835235848,0.23165472,106110.0,106100.0,0.15435598]
[1762835236041,0.23165472,106110.0,106100.0,0.06162913]
[1762835236755,0.23165472,106110.0,106100.0,0.15591313]
[1762835236956,0.23165472,106110.0,106100.0,0.15435598]
[1762835237254,0.23165472,106110.0,106100.0,0.24864008]
[1762835239754,0.13737952,106110.0,106100.0,0.24864008]
[1762835240557,0.23165472,106110.0,106100.0,0.24864008]
[1762835241857,0.23165472,106110.0,106100.0,0.24863998]
[1762835242656,0.23165472,106110.0,106100.0,0.06162913]
[1762835242960,0.23165472,106110.0,106100.0,0.15435598]
[1762835243356,0.23165472,106110.0,106100.0,0.06162913]
[1762835243663,0.23165472,106110.0,106100.0,0.15435598]
[1762835243857,0.23165472,106110.0,106100.0,0.06162913]
[1762835244367,0.23165472,106110.0,106100.0,0.15591323]
[1762835245471,0.23165472,106110.0,106100.0,0.06162913]
[1762835245857,0.23857472,106110.0,106100.0,0.06162913]
[1762835248168,0.69034157,106110.0,106100.0,0.00433913]
[1762835248367,0.59761472,106110.0,106100.0,0.04904913]
[1762835249265,0.59761472,106110.0,106100.0,0.0252611]
[1762835249457,0.59761472,106110.0,106100.0,0.0021411]
[1762835250264,0.69034157,106110.0,106100.0,0.0021411]
[1762835250464,0.69034157,106110.0,106100.0,0.00097536]
[1762835250661,0.71334287,106110.0,106100.0,0.00097536]
[1762835250861,0.69034157,106110.0,106100.0,0.00097536]
[1762835251360,0.71334613,106110.0,106100.0,0.00097536]
[1762835251864,0.71334549,106110.0,106100.0,0.00097536]
[1762835253973,0.137453,106090.0,106080.0,0.1518262]
[1762835254163,0.137453,106090.0,106080.0,0.15402423]
[1762835254164,0.23091252,106090.0,106080.0,0.15402423]
[1762835254364,0.23091252,106090.0,106080.0,0.24675108]
[1762835255266,0.23191252,106090.0,106080.0,0.24675108]
[1762835260078,0.13918567,106090.0,106080.0,0.24675108]
[1762835260278,0.23191252,106090.0,106080.0,0.24675108]
[1762835260479,0.23191252,106090.0,106080.0,0.15402423]
[1762835260774,0.23191252,106090.0,106080.0,0.24675108]
[1762835260972,0.23194293,106090.0,106080.0,0.15402423]
[1762835261171,0.23194293,106090.0,106080.0,0.05972803]
[1762835262180,0.59082293,106090.0,106080.0,0.05972803]
[1762835262578,0.49806567,106090.0,106080.0,0.05972803]
[1762835262775,0.59887293,106090.0,106080.0,0.05972803]
[1762835265680,0.59887293,106090.0,106080.0,0.04690803]
[1762835265885,0.59887293,106090.0,106080.0,0.14120993]
[1762835266282,0.59887293,106090.0,106080.0,0.04690803]
[1762835266878,0.59887293,106090.0,106080.0,0.06059803]
[1762835267290,0.59887293,106090.0,106080.0,0.15489993]
[1762835268494,0.59887293,106090.0,106080.0,0.06059803]
[1762835270293,0.59887293,106090.0,106080.0,0.15489993]
[1762835270590,0.59887293,106090.0,106080.0,0.06059803]
[1762835271390,0.59887293,106090.0,106080.0,0.04690803]
[1762835271593,0.59887293,106090.0,106080.0,0.02531803]
[1762835271893,0.59887293,106090.0,106080.0,0.04797803]
[1762835272295,0.1400019,106080.0,106070.0,0.0572]
[1762835272496,0.23349183,106080.0,106070.0,0.15370883]
[1762835273382,0.23549183,106080.0,106070.0,0.15370883]
[1762835273587,0.04843267,106080.0,106070.0,0.15370883]
[1762835273788,0.04943267,106080.0,106070.0,0.15370883]
[1762835274987,0.14373457,106080.0,106070.0,0.15370883]
[1762835275188,0.14373457,106080.0,106070.0,0.05939803]
[1762835275393,0.14373457,106080.0,106070.0,0.15370883]
[1762835276696,0.14373457,106080.0,106070.0,0.05939803]
[1762835277200,0.23649183,106080.0,106070.0,0.05939803]
[1762835282503,0.23649183,106080.0,106070.0,0.15370883]
[1762835282711,0.23649183,106080.0,106070.0,0.05939803]
[1762835284101,0.23649183,106080.0,106070.0,0.15370883]
[1762835284307,0.14373457,106080.0,106070.0,0.15370883]
[1762835284502,0.00373267,106080.0,106070.0,0.24646609]
[1762835284907,0.303218,106100.0,106090.0,0.152063]
[1762835285202,0.30395067,106100.0,106090.0,0.24701829]
[1762835285403,0.30395067,106100.0,106090.0,0.15426103]
[1762835285704,0.30395067,106100.0,106090.0,0.05996803]
[1762835286006,0.30395067,106100.0,106090.0,0.15426103]
[1762835286405,0.30395067,106100.0,106090.0,0.15626103]
[1762835286709,0.30495067,106100.0,106090.0,0.15626103]
[1762835288307,0.30395067,106100.0,106090.0,0.15426103]
[1762835288608,0.30495067,106100.0,106090.0,0.15726103]
[1762835289306,0.13903067,106100.0,106090.0,0.15726103]
[1762835289708,0.23178793,106100.0,106090.0,0.06296803]
[1762835292903,0.13903067,106100.0,106090.0,0.06296803]
[1762835293203,0.23178793,106100.0,106090.0,0.06296803]
[1762835297407,0.23983793,106100.0,106090.0,0.003]
[1762835298808,0.1371719,106080.0,106070.0,0.0579]
[1762835299106,0.23066183,106080.0,106070.0,0.15427883]
[1762835300411,0.13790457,106080.0,106070.0,0.15427883]
[1762835301206,0.04360267,106080.0,106070.0,0.15427883]
[1762835301412,0.13790457,106080.0,106070.0,0.15427883]
[1762835301613,0.04460267,106080.0,106070.0,0.15427883]
[1762835301816,0.13990457,106080.0,106070.0,0.15427883]
[1762835302514,0.04660267,106080.0,106070.0,0.15427883]
[1762835302714,0.14090457,106080.0,106070.0,0.15427883]
[1762835306910,0.00373267,106080.0,106070.0,0.24703609]
[1762835307315,0.003,106080.0,106070.0,0.24703609]
[1762835310716,0.0451911,106100.0,106090.0,0.152863]
[1762835310919,0.04592377,106100.0,106090.0,0.24781829]
[1762835311318,0.02312377,106100.0,106090.0,0.24781829]
[1762835311706,0.02412377,106100.0,106090.0,0.24781829]
[1762835312018,0.04692377,106100.0,106090.0,0.24981829]
[1762835312518,0.02312377,106100.0,106090.0,0.24781829]
[1762835312719,0.02612377,106100.0,106090.0,0.24781829]
[1762835315222,0.0031411,106100.0,106090.0,0.24781829]
[1762835315616,0.23919016,106130.0,106120.0,0.05857]
[1762835315818,0.26315865,106130.0,106120.0,0.15503433]
[1762835316026,0.25603865,106130.0,106120.0,0.15503433]
[1762835316815,0.25603865,106130.0,106120.0,0.06076803]
[1762835317218,0.26997865,106130.0,106120.0,0.00419803]
[1762835317419,0.26997865,106130.0,106120.0,0.002]
[1762835317822,0.27097865,106130.0,106120.0,0.005]
[1762835319727,0.62977865,106130.0,106120.0,0.05225803]
[1762835319919,0.62977865,106130.0,106120.0,0.06576803]
[1762835322822,0.6297318,106130.0,106120.0,0.06576803]
[1762835323121,0.53702139,106130.0,106120.0,0.06576803]
[1762835323426,0.6297318,106130.0,106120.0,0.06576803]
[1762835324529,0.6297318,106130.0,106120.0,0.16003433]
[1762835325728,0.6297318,106130.0,106120.0,0.06576803]
[1762835325929,0.6297318,106130.0,106120.0,0.16003433]
[1762835328540,0.6297318,106130.0,106120.0,0.05225803]
[1762835329346,0.72244221,106130.0,106120.0,0.05225803]
[1762835330640,0.72244221,106130.0,106120.0,0.00719803]
[1762835331445,0.72244221,106130.0,106110.0,0.0001411]
[1762835331638,0.33236712,106120.0,106110.0,0.0001411]
[1762835331839,0.33309979,106120.0,106110.0,0.04530913]
[1762835332146,0.33309979,106120.0,106110.0,0.13958433]
[1762835332548,0.33309979,106120.0,106110.0,0.15317433]
[1762835332748,0.33309979,106120.0,106110.0,0.15417433]
[1762835332943,0.32672979,106120.0,106110.0,0.15417433]
[1762835333449,0.32672979,106120.0,106110.0,0.15517433]
[1762835333748,0.33409979,106120.0,106110.0,0.06189913]
[1762835333946,0.33409979,106120.0,106110.0,0.04830913]
[1762835334446,0.33409979,106120.0,106110.0,0.15617433]
[1762835334447,0.32772979,106120.0,106110.0,0.15617433]
[1762835335950,0.33409979,106120.0,106110.0,0.06189913]
[1762835336250,0.33409979,106120.0,106110.0,0.15617433]
[1762835336449,0.33409979,106120.0,106110.0,0.06189913]
[1762835336951,0.33409979,106120.0,106110.0,0.00533913]
[1762835337152,0.14867897,106120.0,106110.0,0.02849913]
[1762835337352,0.33409979,106120.0,106110.0,0.05058913]
[1762835339748,0.04591,106070.0,106060.0,0.11814935]
[1762835339954,0.1520196,106060.0,106050.0,0.04525]
[1762835340146,0.1402385,106050.0,106040.0,0.059]
[1762835340347,0.1402385,106050.0,106040.0,0.17703992]
[1762835340348,0.23514694,106050.0,106040.0,0.17703992]
[1762835340948,0.23525637,106050.0,106040.0,0.17703992]
[1762835341153,0.24704637,106050.0,106040.0,0.059]
[1762835342348,0.33975678,106050.0,106040.0,0.04525]
[1762835342548,0.24704637,106050.0,106040.0,0.04525]
[1762835342749,0.24804637,106050.0,106040.0,0.04525]
[1762835342956,0.34075678,106050.0,106040.0,0.04525]
[1762835343452,0.23625657,106050.0,106040.0,0.1533376]
[1762835343654,0.50292787,106050.0,106040.0,0.1533376]
[1762835344151,0.50304787,106050.0,106040.0,0.1533376]
[1762835345656,0.11875787,106050.0,106040.0,0.1533376]
[1762835345856,0.47991787,106050.0,106040.0,0.1533376]
[1762835346055,0.14192787,106050.0,106040.0,0.1533376]
[1762835346855,0.23625657,106050.0,106040.0,0.1533376]
[1762835347150,0.23625657,106050.0,106040.0,0.059]
[1762835347352,0.32896698,106050.0,106040.0,0.059]
[1762835348453,0.00330746,106050.0,106040.0,0.24604801]
[1762835348658,0.09601787,106050.0,106040.0,0.24604801]
[1762835348852,0.09601787,106050.0,106040.0,0.1533376]
[1762835349858,0.11875787,106050.0,106040.0,0.1533376]
[1762835350751,0.21308657,106050.0,106040.0,0.1533376]
[1762835351759,0.23625657,106050.0,106040.0,0.1533376]
[1762835352459,0.23625657,106050.0,106040.0,0.059]
[1762835354961,0.34075698,106050.0,106040.0,0.059]
[1762835355856,0.34075698,106050.0,106040.0,0.04525]
[1762835358163,0.34075698,106050.0,106040.0,0.02316]
[1762835358366,0.34075698,106050.0,106040.0,0.059]
[1762835359662,0.34075698,106050.0,106040.0,0.04525]
[1762835359965,0.34075698,106050.0,106040.0,0.04562]
[1762835360958,0.70151698,106050.0,106040.0,0.04562]
[1762835361157,0.70151698,106050.0,106040.0,0.05838]
[1762835361758,0.70251698,106050.0,106040.0,0.1527176]
[1762835362372,0.69072698,106050.0,106040.0,0.1527176]
[1762835363459,0.14292787,106050.0,106040.0,0.1527176]
[1762835363760,0.23725657,106050.0,106040.0,0.14044877]
[1762835364360,0.23625657,106050.0,106040.0,0.14044877]
[1762835364567,0.23725657,106050.0,106040.0,0.14044877]
[1762835364958,0.23625657,106050.0,106040.0,0.14044877]
[1762835365159,0.14192787,106050.0,106040.0,0.14044877]
[1762835365464,0.23625657,106050.0,106040.0,0.14044877]
[1762835365765,0.14192787,106050.0,106040.0,0.14044877]
[1762835366372,0.23625657,106050.0,106040.0,0.04611117]
[1762835366563,0.1392176,106040.0,106030.0,0.1524465]
[1762835366771,0.23249885,106040.0,106030.0,0.1524465]
[1762835367068,0.13978844,106040.0,106030.0,0.1524465]
[1762835367973,0.14178844,106040.0,106030.0,0.1524465]
[1762835368583,0.05107803,106040.0,106030.0,0.1524465]
[1762835368868,0.14378844,106040.0,106030.0,0.24515691]
[1762835373069,0.16892471,106040.0,106030.0,0.24515691]
[1762835373368,0.16892471,106040.0,106030.0,0.23288861]
[1762835374361,0.0313343,106040.0,106030.0,0.46864861]
[1762835374569,0.031337,106040.0,106030.0,0.46864861]
[1762835375069,0.00619803,106040.0,106030.0,0.46864861]
[1762835376067,0.00619803,106040.0,106030.0,0.23288861]
[1762835376468,0.00619803,106040.0,106030.0,0.46864861]
[1762835378076,0.02947803,106040.0,106030.0,0.61424861]
[1762835378578,0.05107803,106040.0,106030.0,0.61424861]
[1762835379576,0.14378844,106040.0,106030.0,0.61424861]
[1762835380077,0.12218844,106040.0,106030.0,0.61424861]
[1762835380278,0.09890844,106040.0,106030.0,0.61424861]
[1762835380576,0.00619803,106040.0,106030.0,0.61424861]
[1762835380775,0.00619803,106040.0,106030.0,0.37848861]
[1762835380980,0.00619803,106040.0,106030.0,0.61424861]
[1762835381275,0.00619803,106040.0,106030.0,0.37848861]
[1762835381475,0.00619803,106040.0,106030.0,0.61424861]
[1762835382573,0.00619803,106040.0,106030.0,0.37848861]
[1762835382881,0.09890844,106040.0,106030.0,0.61424861]
[1762835383067,0.12218844,106040.0,106030.0,0.61424861]
[1762835383584,0.46378844,106040.0,106030.0,0.37848861]
[1762835383874,0.37107803,106040.0,106030.0,0.37848861]
[1762835384077,0.46378844,106040.0,106030.0,0.37848861]
[1762835384374,0.55812604,106040.0,106030.0,0.2857782]
[1762835384676,0.55812604,106040.0,106030.0,0.37848861]
[1762835384870,0.55826263,106040.0,106030.0,0.1914317]
[1762835389177,0.46541563,106040.0,106030.0,0.1914317]